bitfinex/quotes_ETHUSD_20220308
["timestamp","ask_amount","ask_price","bid_price","bid_amount"]
[1646745302887,0.00467929,2562.3,2562.2,5.45096737]
[1646745303085,3.5,2563.3,2562.2,5.15096737]
[1646745303291,1.1866,2563.4,2562.2,3.85629697]
[1646745303492,0.3902,2563.3,2562.2,3.85732995]
[1646745303890,0.3902,2563.3,2562.2,3.55732995]
[1646745304392,2.1866,2563.4,2562.2,3.55732995]
[1646745304393,0.97614,2563.0,2562.2,3.55732995]
[1646745304590,0.97614,2563.0,2562.2,3.55629697]
[1646745305191,2.95218,2563.4,2562.2,3.55629697]
[1646745305392,2.95218,2563.4,2562.3,1.59466257]
[1646745305606,2.95218,2563.4,2562.6,0.97609]
[1646745305795,0.004694,2562.7,2562.6,0.97609]
[1646745306194,0.004694,2562.7,2562.6,1.91482298]
[1646745306435,0.004694,2562.7,2562.6,0.97609]
[1646745306637,2.09012996,2563.7,2562.6,0.97609]
[1646745306638,3.5,2563.6,2562.6,0.97609]
[1646745306833,2.09012996,2563.7,2562.6,0.97609]
[1646745307433,2.09012996,2563.7,2562.6,1.952]
[1646745307635,0.13819996,2563.7,2562.9,0.97587]
[1646745308033,0.13819996,2563.7,2563.0,0.9770686]
[1646745308234,0.5,2563.2,2563.0,0.9770686]
[1646745308635,1.95172,2564.0,2563.0,0.9770686]
[1646745309139,1.96322954,2563.5,2563.0,0.9770686]
[1646745309537,1.96322954,2563.5,2563.0,2.9286586]
[1646745309737,1.96322954,2563.5,2563.0,3.2286586]
[1646745310188,1.96322954,2563.5,2563.0,1.2770686]
[1646745310375,1.96322954,2563.5,2563.0,0.9770686]
[1646745310777,0.00469556,2563.4,2563.1,4.06897603]
[1646745310979,0.00469556,2563.4,2563.3,0.632]
[1646745311179,0.00469556,2563.4,2563.3,1.1]
[1646745311784,1.96536323,2563.5,2563.3,1.1]
[1646745311982,1.96536323,2563.5,2563.4,1.59136704]
[1646745312182,1.96536323,2563.5,2563.4,2.05936704]
[1646745312382,1.96536323,2563.5,2563.4,2.44956704]
[1646745312582,0.50853349,2563.9,2563.7,0.632]
[1646745312583,0.5,2563.9,2563.7,0.632]
[1646745312782,2.297,2564.7,2563.7,0.632]
[1646745312982,0.00853349,2564.0,2563.9,0.632]
[1646745313182,0.00853349,2564.0,2563.9,2.07544]
[1646745313382,0.00853349,2564.0,2563.9,2.46564]
[1646745313580,0.00853349,2564.0,2563.9,2.07544]
[1646745313783,0.3902,2564.8,2563.9,0.632]
[1646745314044,4.5,2564.7,2563.9,0.632]
[1646745314241,4.5,2564.7,2563.5,0.00103298]
[1646745314242,0.97564,2564.5,2563.5,0.00103298]
[1646745314447,0.97564,2564.5,2563.2,0.00103298]
[1646745314448,0.3902,2564.2,2563.2,0.00103298]
[1646745314740,0.3902,2564.2,2563.0,0.00103298]
[1646745314741,0.93423746,2563.4,2563.0,0.00103298]
[1646745314943,0.93423746,2563.4,2562.6,0.00103298]
[1646745315146,0.93423746,2563.4,2562.3,0.00103298]
[1646745315147,0.3902,2563.3,2562.3,0.00103298]
[1646745315340,2.34248,2563.3,2562.2,0.25]
[1646745315542,1.0,2563.4,2562.2,1.61631]
[1646745315743,0.00500096,2563.8,2562.3,1.59454571]
[1646745315943,3.50500096,2563.8,2562.3,1.98577869]
[1646745316142,0.5,2563.5,2562.5,1.95183]
[1646745316343,0.5,2563.5,2562.6,0.00103298]
[1646745316643,1.22732002,2563.4,2562.5,2.25183]
[1646745316946,1.22732002,2563.4,2562.3,0.00103298]
[1646745317148,1.22732002,2563.4,2562.2,2.2019727]
[1646745317343,1.22732002,2563.4,2562.2,5.1300627]
[1646745317544,1.61752002,2563.4,2562.2,5.1300627]
[1646745317782,1.36626,2563.3,2562.2,6.24508459]
[1646745318182,0.97606,2563.3,2562.2,6.54508459]
[1646745318480,0.97606,2563.3,2562.3,1.59463384]
[1646745319084,0.99606511,2563.3,2562.3,1.59463384]
[1646745319488,0.99606511,2563.3,2562.5,0.9760579]
[1646745319686,0.99606511,2563.3,2562.5,1.9521379]
[1646745319888,0.97606,2563.3,2562.5,2.2521379]
[1646745320991,0.97606,2563.3,2562.6,1.1]
[1646745321189,4.47606,2563.3,2562.6,1.1]
[1646745321456,4.47606,2563.3,2562.3,1.10103298]
[1646745321637,4.47606,2563.3,2562.7,1.1]
[1646745321638,5.48809453,2563.3,2562.7,1.1]
[1646745321838,1.0,2563.0,2562.7,1.1]
[1646745322041,0.97626,2562.9,2562.7,1.1]
[1646745322438,1.93087341,2562.9,2562.3,1.1]
[1646745322637,1.93087341,2562.9,2562.8,1.1]
[1646745323237,1.93087341,2562.9,2562.3,0.00103298]
[1646745323238,5.0,2562.8,2562.3,0.00103298]
[1646745323445,0.9764,2562.7,2562.1,6.51e-05]
[1646745324645,1.9764,2562.7,2562.1,6.51e-05]
[1646745324938,1.0,2562.3,2562.1,6.51e-05]
[1646745325192,1.97653,2562.2,2562.1,6.51e-05]
[1646745325393,2.97653,2562.2,2562.1,6.51e-05]
[1646745325597,3.27653,2562.2,2562.1,6.51e-05]
[1646745325801,3.27653,2562.2,2561.1,0.01930943]
[1646745325802,11.8208,2562.0,2561.1,0.01930943]
[1646745325998,0.991,2562.0,2561.1,0.01930943]
[1646745326196,0.991,2562.0,2560.5,0.00103298]
[1646745326197,0.3902,2561.7,2560.5,0.00103298]
[1646745326394,0.3902,2561.7,2560.5,0.25103298]
[1646745326395,1.0,2561.2,2560.5,0.25103298]
[1646745326596,1.4588161,2561.1,2560.2,0.00103298]
[1646745326795,1.4588161,2561.1,2560.2,1.59567894]
[1646745326796,2.4588161,2561.1,2560.2,1.59567894]
[1646745327301,3.4358361,2561.1,2560.2,1.59567894]
[1646745327598,3.4358361,2561.1,2560.4,0.0046834]
[1646745327599,1.0,2561.0,2560.4,0.0046834]
[1646745327998,12.2102,2561.0,2560.4,0.0046834]
[1646745328198,1.0,2560.5,2560.4,0.0046834]
[1646745328498,0.97722,2560.4,2560.1,0.007]
[1646745328697,0.97722,2560.4,2560.2,0.01873515]
[1646745329532,0.97722,2560.4,2560.1,0.007]
[1646745329935,0.97722,2560.4,2560.2,0.00468348]
[1646745330335,1.27722,2560.4,2560.2,0.00468348]
[1646745330535,1.0,2560.3,2560.2,0.00468348]
[1646745330735,1.0,2560.3,2560.1,0.007]
[1646745331139,1.0,2560.2,2560.1,0.007]
[1646745332338,2.06332801,2560.2,2560.1,0.007]
[1646745332785,1.0,2560.2,2560.1,0.007]
[1646745332986,1.0,2560.5,2560.1,0.007]
[1646745333185,4.78199,2560.9,2560.1,0.007]
[1646745333186,0.97708,2560.6,2560.1,0.007]
[1646745333785,1.97708,2560.6,2560.1,0.007]
[1646745334188,1.0,2560.3,2560.1,0.007]
[1646745334389,1.0,2560.2,2560.1,0.007]
[1646745334586,2.97726,2560.2,2560.1,0.007]
[1646745334989,0.97726,2560.2,2560.1,0.007]
[1646745335196,5.5,2560.1,2559.0,7.758]
[1646745335393,2.0209047,2560.2,2559.2,0.00103298]
[1646745335394,0.01249012,2559.5,2559.2,0.00103298]
[1646745335589,0.97766,2559.4,2559.0,0.00103298]
[1646745335790,1.27766,2559.4,2558.7,3.90864]
[1646745335988,1.27636,2559.4,2558.7,0.40864]
[1646745336189,0.97766,2559.4,2558.7,0.40864]
[1646745336833,0.97766,2559.4,2558.7,0.01854]
[1646745337234,0.91121954,2559.2,2558.7,0.01854]
[1646745337437,0.97775,2559.2,2558.7,0.01854]
[1646745337838,1.97775,2559.2,2558.7,0.01854]
[1646745338236,1.0,2559.1,2558.7,0.01854]
[1646745338638,1.95555,2559.0,2558.7,0.01854]
[1646745339438,1.95555,2559.0,2558.7,0.02134364]
[1646745340482,1.95555,2559.0,2558.7,0.01854]
[1646745340685,1.95555,2559.0,2558.7,0.02348731]
[1646745341684,1.95555,2559.0,2558.7,1.11854]
[1646745341886,1.95555,2559.0,2558.7,1.12348731]
[1646745342485,1.97776,2559.1,2558.7,1.12348731]
[1646745342785,1.97776,2559.1,2558.8,1.1]
[1646745342786,0.97776,2559.1,2558.8,1.1]
[1646745343186,0.97776,2559.1,2558.8,2.10641526]
[1646745343387,4.6708,2559.7,2558.8,2.10641526]
[1646745343388,2.1708,2559.7,2558.8,2.10641526]
[1646745343589,1.95534,2559.3,2558.8,2.10641526]
[1646745343788,1.95534,2559.3,2558.8,1.1]
[1646745344242,1.95534,2559.3,2558.7,0.01854]
[1646745344441,1.95534,2559.3,2558.9,0.0049471]
[1646745344942,1.0,2559.2,2558.9,0.0049471]
[1646745345139,1.95534,2559.3,2558.7,0.01854]
[1646745345338,1.95534,2559.3,2558.8,1.1]
[1646745345543,1.95534,2559.3,2559.0,0.00494704]
[1646745345742,0.97762,2559.1,2559.0,0.00494704]
[1646745346140,3.03578431,2559.1,2559.0,0.00494704]
[1646745346342,4.03578431,2559.1,2559.0,0.00494704]
[1646745346648,1.97762,2559.1,2558.9,0.0049471]
[1646745347043,0.97762,2559.1,2558.9,0.0049471]
[1646745347720,0.97762,2559.1,2558.8,1.1]
[1646745347916,0.97762,2559.1,2558.9,0.00478018]
[1646745348120,1.97762,2559.1,2558.9,0.00478018]
[1646745348918,1.0,2558.9,2558.8,1.1]
[1646745349119,1.95564,2558.9,2558.7,0.01854]
[1646745349321,0.97755,2559.3,2558.7,0.01854]
[1646745349520,0.01876363,2559.1,2558.7,0.01854]
[1646745350129,2.50399868,2557.9,2557.4,4.8993244]
[1646745350321,2.50399868,2557.9,2557.8,0.01695488]
[1646745350521,0.80043375,2557.9,2557.8,0.01695488]
[1646745350921,2.93359,2558.0,2557.3,0.00844164]
[1646745350923,3.91145,2558.0,2557.3,0.00844164]
[1646745351121,2.93316,2558.4,2557.3,0.00844164]
[1646745351122,19.94418,2559.2,2557.6,4.2109566]
[1646745351330,0.3911,2559.2,2558.3,3.0]
[1646745351542,0.25,2559.1,2558.4,3.468]
[1646745351743,0.97736,2558.9,2558.5,0.468]
[1646745351942,1.95479,2558.8,2558.5,0.468]
[1646745352142,1.95479,2558.8,2558.6,1.00324111]
[1646745352542,1.14344227,2558.8,2558.6,1.30324111]
[1646745352842,1.14344227,2558.8,2558.7,0.468]
[1646745353246,1.14344227,2558.8,2558.5,0.00469374]
[1646745353647,1.14344227,2558.8,2558.4,1.9546259]
[1646745353946,1.14344227,2558.8,2558.2,0.9777166]
[1646745354143,1.95529,2558.5,2558.2,0.9777166]
[1646745355177,1.95538,2558.4,2558.2,0.9777166]
[1646745357586,1.95538,2558.4,2558.2,0.98264166]
[1646745358186,1.95538,2558.4,2558.3,1.1]
[1646745360440,0.97761,2558.5,2558.3,4.6]
[1646745360638,0.97761,2558.5,2558.4,1.1]
[1646745360837,0.97761,2558.5,2558.4,1.868]
[1646745361238,0.97761,2558.5,2558.4,1.568]
[1646745362436,0.97761,2558.5,2558.4,1.9582]
[1646745362682,1.22768,2558.6,2558.4,1.9582]
[1646745363082,1.22768,2558.6,2558.4,2.2582]
[1646745363284,1.22768,2558.6,2558.4,5.7582]
[1646745363483,1.22768,2558.6,2558.4,6.7355774]
[1646745363688,1.22768,2558.6,2558.4,7.7404099]
[1646745364086,1.22768,2558.6,2558.5,4.9902]
[1646745364287,0.25009857,2558.6,2558.5,6.4582]
[1646745364490,1.22726,2558.9,2558.5,6.4582]
[1646745364892,1.95456,2559.1,2558.5,6.4582]
[1646745365088,0.97711,2559.7,2559.1,1.4902]
[1646745365287,0.25,2559.9,2559.3,1.4902]
[1646745365492,0.25,2559.9,2559.5,4.4902]
[1646745365693,0.39324205,2560.5,2559.6,0.8582]
[1646745365694,0.97691,2559.8,2559.6,0.8582]
[1646745365890,0.25003,2560.1,2559.7,1.4902]
[1646745366089,0.39571072,2560.5,2560.0,0.3902]
[1646745366292,0.39571072,2560.5,2560.3,1.1]
[1646745366293,0.64571072,2560.5,2560.3,1.1]
[1646745366938,3.57143,2560.5,2560.3,1.4]
[1646745367137,3.57143,2560.5,2560.4,1.9582]
[1646745367336,2.59465,2560.5,2560.4,1.9582]
[1646745367736,2.59465,2560.5,2560.4,1.568]
[1646745368135,2.20355,2560.5,2560.4,1.568]
[1646745369044,2.20355,2560.5,2560.3,1.1]
[1646745370042,3.18041,2560.5,2560.1,0.7306896]
[1646745370785,3.18041,2560.5,2560.3,0.7306896]
[1646745370786,3.18516578,2560.5,2560.3,0.7306896]
[1646745371786,3.18041,2560.5,2560.3,0.7306896]
[1646745371985,3.18516578,2560.5,2560.3,0.7306896]
[1646745372586,1.48295882,2560.5,2560.3,0.7306896]
[1646745372986,1.42820304,2560.5,2560.3,1.0306896]
[1646745373187,2.40967655,2560.5,2560.3,1.4986896]
[1646745374139,2.40506304,2560.5,2560.3,1.4986896]
[1646745374335,2.40967655,2560.5,2560.3,1.4986896]
[1646745374534,0.05076957,2560.4,2560.3,1.4986896]
[1646745374736,0.05076957,2560.4,2560.3,3.09442166]
[1646745374940,0.05076957,2560.4,2560.3,4.09442166]
[1646745375337,2.40506304,2560.5,2560.4,6.2306896]
[1646745375538,2.40506304,2560.5,2560.4,7.0888896]
[1646745375539,1.43281658,2560.5,2560.4,7.0888896]
[1646745375738,2.0,2561.9,2560.6,1.1208896]
[1646745375938,4.15641,2561.6,2561.1,0.7306896]
[1646745376138,4.15641,2561.6,2561.3,0.7306896]
[1646745376338,0.97637,2561.5,2561.3,0.7306896]
[1646745376539,0.97637,2561.5,2561.4,0.7306896]
[1646745378190,1.95277,2561.5,2561.4,0.7306896]
[1646745378689,0.87637,2561.5,2561.4,0.7306896]
[1646745379491,0.1802659,2561.5,2561.4,1.1986896]
[1646745379891,0.0021373,2561.6,2561.5,6.2306896]
[1646745380095,0.25,2561.7,2561.5,18.5186896]
[1646745380293,0.0008,2562.0,2561.7,1.7067096]
[1646745380494,0.0008,2562.0,2561.8,0.7306896]
[1646745380691,0.0008,2562.0,2561.9,0.7306896]
[1646745381091,0.0008,2562.0,2561.9,1.62484284]
[1646745381539,0.0008,2562.0,2561.9,0.7306896]
[1646745382237,0.0008,2562.0,2561.7,0.9760146]
[1646745382439,0.0008,2562.0,2561.8,1.16438617]
[1646745382639,0.0008,2562.0,2561.6,1.9520292]
[1646745382640,3.95276,2561.9,2561.6,1.9520292]
[1646745382839,3.95276,2561.9,2560.7,3.905403]
[1646745383040,3.95276,2561.9,2560.1,10.43746751]
[1646745383041,0.97682,2561.5,2560.1,0.3903]
[1646745383239,0.97682,2561.5,2559.8,0.0046334]
[1646745383240,0.3902,2561.2,2559.8,0.0046334]
[1646745383441,0.3902,2561.2,2559.4,0.01853677]
[1646745383442,0.01276835,2560.9,2559.4,0.01853677]
[1646745383639,0.3902,2560.0,2559.4,0.01853677]
[1646745383839,0.3902,2559.8,2559.4,0.5]
[1646745384448,1.95472,2559.7,2558.5,0.468]
[1646745384645,1.95472,2559.7,2558.6,1.5963424]
[1646745384844,0.9774,2559.6,2559.0,0.76355857]
[1646745385044,0.97734,2559.4,2559.0,4.26355857]
[1646745385290,0.97734,2559.4,2559.1,12.288]
[1646745385489,0.97734,2559.4,2559.2,4.26355857]
[1646745385689,0.97734,2559.4,2559.3,1.23155857]
[1646745386894,0.97734,2559.4,2559.3,1.62175857]
[1646745387090,1.9548,2559.7,2559.3,16.44175857]
[1646745387292,2.93211,2559.9,2559.5,0.76355857]
[1646745387491,2.93211,2559.9,2559.6,0.468]
[1646745387689,2.93211,2559.9,2559.7,0.76355857]
[1646745388090,0.97696,2559.8,2559.7,0.76355857]
[1646745388291,0.97696,2559.8,2559.7,0.68177928]
[1646745388791,0.97696,2559.8,2559.3,0.0049289]
[1646745389042,0.97696,2559.8,2559.3,0.19581854]
[1646745389338,0.14626771,2559.4,2559.3,0.0049289]
[1646745389738,0.04626771,2559.4,2559.1,0.19088964]
[1646745390140,0.04626771,2559.4,2559.2,0.00492866]
[1646745390340,2.00049771,2559.4,2559.3,0.19088964]
[1646745390842,2.00049771,2559.4,2559.2,0.00492866]
[1646745390843,2.30049771,2559.4,2559.2,0.00492866]
[1646745391040,4.25477771,2559.4,2558.9,2.931214]
[1646745391240,4.25477771,2559.4,2559.2,0.00492866]
[1646745391442,0.97747,2559.0,2558.7,0.00096]
[1646745391741,1.95496,2559.0,2558.4,0.46896]
[1646745391941,2.25496,2559.0,2558.5,1.59684299]
[1646745392342,2.25496,2559.0,2558.2,4.8872574]
[1646745392543,2.25496,2559.0,2558.1,0.468]
[1646745392544,0.97751,2558.9,2558.1,0.468]
[1646745393789,0.00462691,2558.8,2558.4,0.00462775]
[1646745393989,2.93746691,2558.8,2558.4,0.00462775]
[1646745394191,2.8902,2558.7,2557.9,0.00096]
[1646745394392,2.8902,2558.7,2557.9,0.468]
[1646745394393,0.3902,2558.7,2557.9,0.468]
[1646745394590,2.2552,2558.8,2558.0,0.9776407]
[1646745394794,0.3,2558.8,2558.0,0.9776407]
[1646745394989,5.86582,2559.0,2558.0,1.4456407]
[1646745394990,6.16582,2559.0,2558.0,1.4456407]
[1646745395189,6.16582,2559.0,2558.2,1.04723616]
[1646745395589,0.97768,2558.5,2558.1,1.955018]
[1646745395794,1.95518,2558.5,2558.1,1.955018]
[1646745395989,1.95518,2558.5,2558.2,0.3]
[1646745396190,1.95518,2558.5,2558.3,13.6556537]
[1646745396191,0.97768,2558.5,2558.3,13.6556537]
[1646745396439,0.06603627,2559.3,2558.4,0.3]
[1646745396638,0.06603627,2559.3,2558.5,0.468]
[1646745396838,0.06603627,2559.3,2558.9,1.06255732]
[1646745397441,0.00493162,2559.0,2558.9,0.3]
[1646745397638,1.95936162,2559.0,2558.9,1.9543454]
[1646745397841,1.95936162,2559.0,2558.9,2.2543454]
[1646745398243,0.97716,2559.1,2558.9,2.2543454]
[1646745398244,0.97716,2559.1,2558.9,14.5423454]
[1646745398445,0.98209151,2559.1,2558.9,14.5423454]
[1646745398644,0.98209151,2559.1,2558.9,15.5423454]
[1646745398845,0.98209151,2559.1,2558.9,3.7223454]
[1646745399045,0.98209151,2559.1,2559.0,1.02630404]
[1646745399245,0.98209151,2559.1,2559.0,1.49430404]
[1646745399447,0.97716,2559.1,2559.0,1.49430404]
[1646745399848,0.98209145,2559.1,2559.0,1.49430404]
[1646745400686,2.9314,2559.3,2559.0,1.49430404]
[1646745400886,0.0049314,2559.2,2559.1,12.84630404]
[1646745401085,0.0049314,2559.2,2559.1,1.49430404]
[1646745401284,0.0049314,2559.2,2559.1,2.49430404]
[1646745401483,0.0049314,2559.2,2559.1,1.49430404]
[1646745401683,0.0049314,2559.2,2559.1,0.732]
[1646745401885,1.95422,2559.3,2559.1,1.032]
[1646745402086,1.95422,2559.3,2559.2,1.2]
[1646745402087,1.95915129,2559.3,2559.2,1.2]
[1646745402986,1.95422,2559.3,2559.2,1.2]
[1646745404340,1.98362046,2559.3,2559.2,1.2]
[1646745406043,0.97713118,2559.4,2559.2,1.2]
[1646745406243,0.97713118,2559.4,2559.2,1.5]
[1646745406446,0.97713118,2559.4,2559.3,0.732]
[1646745406642,0.97713118,2559.4,2559.3,1.2]
[1646745406643,0.9722,2559.4,2559.3,1.2]
[1646745407045,0.97713113,2559.4,2559.3,1.2]
[1646745407246,1.27713113,2559.4,2559.1,0.468]
[1646745407444,0.97713113,2559.4,2558.7,0.468]
[1646745407699,0.3902,2559.2,2558.3,0.00493336]
[1646745407896,1.36766,2559.1,2558.1,0.468]
[1646745408291,1.19387476,2558.9,2558.3,1.9548276]
[1646745408491,1.19387476,2558.9,2558.3,1.95976075]
[1646745408892,2.17131476,2558.9,2558.3,1.95976075]
[1646745409092,2.17131476,2558.9,2558.3,1.9548276]
[1646745409495,0.00476911,2558.7,2558.3,1.95959756]
[1646745409696,0.00476911,2558.7,2558.4,1.7454098]
[1646745410099,0.00476911,2558.7,2558.5,4.36744]
[1646745410297,0.97705,2559.1,2558.6,0.8582]
[1646745410697,0.97705,2559.1,2558.7,3.53934192]
[1646745410899,0.91845,2559.1,2558.9,3.3902]
[1646745411201,3.90905,2559.9,2558.9,3.3902]
[1646745411202,2.7581,2560.5,2559.4,1.4902]
[1646745411448,1.13819996,2560.8,2559.6,1.1]
[1646745411449,0.13819996,2560.8,2559.6,1.1]
[1646745411647,0.97681,2559.9,2559.8,2.30616307]
[1646745411846,0.97681,2559.9,2559.8,2.77416307]
[1646745412146,0.97681,2559.9,2559.8,3.07416307]
[1646745412449,0.97681,2559.9,2559.8,5.6705567]
[1646745412646,4.54868121,2560.1,2559.8,4.46439363]
[1646745412845,4.54868121,2560.1,2559.8,2.868]
[1646745413048,0.00475262,2560.0,2559.8,2.868]
[1646745413446,0.97681,2559.9,2559.8,2.868]
[1646745413645,0.97681,2559.9,2559.8,3.46439555]
[1646745413847,0.97681,2559.9,2559.8,2.868]
[1646745414046,0.97681,2559.9,2559.8,1.868]
[1646745414245,0.97681,2559.9,2559.8,2.868]
[1646745414449,0.97681,2559.9,2559.8,1.868]
[1646745414647,0.97681,2559.9,2559.8,2.868]
[1646745414846,0.97681,2559.9,2559.8,1.868]
[1646745414847,1.133178,2559.9,2559.8,1.868]
[1646745415047,1.133178,2559.9,2559.8,1.1]
[1646745415293,0.97681,2559.9,2559.3,0.00096]
[1646745415499,0.97681,2559.9,2559.3,0.468]
[1646745415500,0.97709,2559.8,2559.3,0.468]
[1646745415699,2.02739638,2559.7,2559.0,0.19556751]
[1646745415896,2.02739638,2559.7,2559.1,1.59653273]
[1646745416095,2.02739638,2559.7,2559.2,0.468]
[1646745416294,2.02739638,2559.7,2558.8,1.00608825]
[1646745416496,2.02739638,2559.7,2558.9,0.468]
[1646745416795,1.95424,2559.4,2558.9,0.468]
[1646745416996,2.93136,2559.4,2558.9,0.468]
[1646745417695,3.23136,2559.4,2558.9,0.468]
[1646745417996,0.98173065,2559.3,2558.9,0.468]
[1646745418198,2.93214,2559.2,2558.4,0.00096]
[1646745418396,1.2004015,2559.0,2558.4,0.468]
[1646745418941,3.1551315,2559.0,2558.4,0.468]
[1646745419147,0.97737,2558.9,2558.4,0.468]
[1646745419547,0.97737,2558.9,2558.3,0.00245013]
[1646745419945,0.97737,2558.9,2558.2,0.468]
[1646745420447,1.95486,2558.9,2558.2,0.468]
[1646745421046,4.88731,2558.9,2558.2,0.468]
[1646745421248,0.97751,2558.8,2558.2,0.468]
[1646745421448,0.97749,2558.6,2558.2,0.468]
[1646745421647,0.97749,2558.6,2558.2,1.44354115]
[1646745422347,0.97749,2558.6,2558.2,1.74354115]
[1646745422789,3.90882,2559.5,2558.5,3.3902]
[1646745422790,0.97704,2558.9,2558.5,3.3902]
[1646745422989,0.97704,2558.9,2558.8,1.18550104]
[1646745423189,0.97704,2558.9,2558.8,1.65350104]
[1646745423392,0.97704,2558.9,2558.8,0.468]
[1646745423992,1.17012352,2558.9,2558.8,0.468]
[1646745424395,0.19308352,2558.9,2558.8,0.468]
[1646745424594,0.19308352,2558.9,2558.8,1.50935483]
[1646745425594,0.19308352,2558.9,2558.8,2.60935483]
[1646745425792,0.19308352,2558.9,2558.8,3.60935483]
[1646745425996,0.06440958,2558.9,2558.8,3.60935483]
[1646745426437,0.15643061,2559.0,2558.9,0.04550655]
[1646745426637,0.00493161,2559.0,2558.9,1.61350655]
[1646745427239,0.97716,2559.1,2558.9,1.61350655]
[1646745427639,0.98209151,2559.1,2558.9,1.61350655]
[1646745427838,1.08099998,2559.0,2558.9,1.61350655]
[1646745428644,0.3902,2558.9,2558.4,0.00096]
[1646745428841,1.36767,2558.9,2558.5,0.468]
[1646745429039,1.36767,2558.9,2558.3,1.17987468]
[1646745429241,1.95494,2558.8,2558.3,1.17987468]
[1646745429442,3.90985,2558.8,2558.3,1.17987468]
[1646745429743,1.05981062,2558.6,2558.3,1.17987468]
[1646745430202,1.05981062,2558.6,2558.4,0.71187468]
[1646745430392,1.05981062,2558.6,2558.4,1.17987468]
[1646745430592,0.97745,2558.7,2558.4,1.17987468]
[1646745430993,0.97739,2558.6,2558.4,1.17987468]
[1646745431694,0.97739,2558.6,2558.4,4.41346229]
[1646745431897,1.22516261,2558.9,2558.4,4.6090298]
[1646745431898,0.24803261,2558.9,2558.4,4.6090298]
[1646745432194,1.22512261,2558.9,2558.8,0.71399779]
[1646745432398,1.22512261,2558.9,2558.8,0.468]
[1646745432795,1.47623249,2559.1,2558.9,3.5]
[1646745432994,1.47623249,2559.1,2559.0,0.468]
[1646745433597,1.48099227,2559.1,2559.0,0.468]
[1646745434242,0.00475978,2559.1,2559.0,0.468]
[1646745434639,1.95469,2559.2,2559.0,0.768]
[1646745434940,1.95944973,2559.2,2559.0,0.768]
[1646745435139,0.00475973,2559.2,2559.0,0.768]
[1646745435739,0.9771,2559.3,2559.0,1.48199779]
[1646745435938,0.00462671,2559.2,2559.0,1.48199779]
[1646745436342,0.00462671,2559.2,2559.0,2.45894779]
[1646745436540,0.00462671,2559.2,2559.1,1.5964667]
[1646745436739,0.00462671,2559.2,2559.1,2.0644667]
[1646745436740,2.671e-05,2559.2,2559.1,2.0644667]
[1646745436940,1.158,2560.2,2559.1,2.0644667]
[1646745437140,1.158,2560.2,2559.3,0.71409872]
[1646745437345,5.84131006,2560.7,2559.4,0.468]
[1646745437543,0.9768,2559.9,2559.4,2.77856542]
[1646745437791,0.9768,2559.9,2559.5,1.5974267]
[1646745437994,0.9768,2559.9,2559.6,0.468]
[1646745438291,1.133202,2559.9,2559.6,0.468]
[1646745438490,0.97923223,2559.8,2559.6,0.468]
[1646745438691,2.93370223,2559.8,2559.6,0.468]
[1646745438894,3.0,2559.7,2558.8,0.00096]
[1646745439096,0.3902,2559.5,2559.0,0.468]
[1646745439294,0.3902,2559.5,2559.1,1.59675452]
[1646745439495,3.90953,2559.6,2558.7,0.46896]
[1646745439496,2.48845194,2559.2,2558.7,0.46896]
[1646745439696,2.48845194,2559.2,2558.8,1.59682737]
[1646745439898,2.88478958,2559.2,2558.8,1.59682737]
[1646745440297,0.97739,2559.1,2558.9,1.59682737]
[1646745440697,0.97739,2559.1,2559.0,0.468]
[1646745440997,0.97739,2559.1,2559.0,2.06482737]
[1646745441845,0.97739,2559.1,2559.0,3.16482737]
[1646745444552,1.06131489,2559.1,2559.0,3.16482737]
[1646745445386,0.04202489,2559.1,2559.0,4.16482737]
[1646745445585,0.04202489,2559.1,2559.0,9.01682737]
[1646745445785,0.04202489,2559.1,2559.0,10.01682737]
[1646745445985,0.97701,2559.8,2559.2,1.1]
[1646745446186,0.97701,2559.8,2559.4,1.1]
[1646745446385,0.97701,2559.8,2559.6,1.1]
[1646745446588,0.97701,2559.8,2559.7,1.568]
[1646745446786,0.97701,2559.8,2559.7,1.868]
[1646745446986,0.97701,2559.8,2559.7,3.46482737]
[1646745447990,0.96660167,2559.8,2559.7,3.46482737]
[1646745449249,1.2053,2560.3,2559.7,4.46482737]
[1646745449449,1.1853,2560.7,2559.9,1.05]
[1646745449645,1.1853,2560.7,2559.8,1.59682737]
[1646745449646,7.3675,2561.1,2560.1,1.05]
[1646745449845,2.891,2561.1,2560.2,1.518]
[1646745450047,2.891,2561.1,2560.5,1.05]
[1646745450247,2.3503,2561.4,2560.6,3.11482737]
[1646745450449,0.97648,2561.3,2560.8,1.05]
[1646745450646,0.97648,2561.3,2561.0,1.05]
[1646745450847,0.97648,2561.3,2561.2,1.05]
[1646745451050,0.97648,2561.3,2561.2,1.518]
[1646745451246,1.91098719,2561.3,2561.2,1.518]
[1646745451951,1.91098719,2561.3,2561.2,1.05]
[1646745452548,1.91098719,2561.3,2560.8,1.05]
[1646745452549,0.97662,2561.1,2560.8,1.05]
[1646745452791,0.97662,2561.1,2560.8,2.0265386]
[1646745452792,1.95325,2561.1,2560.8,2.0265386]
[1646745452993,0.97663,2561.1,2560.8,2.4945386]
[1646745453792,0.97663,2561.1,2560.8,14.3145386]
[1646745453993,0.98156662,2561.1,2560.8,2.7945386]
[1646745454293,1.95806662,2561.1,2560.8,2.7945386]
[1646745454899,3.5,2561.0,2560.8,1.518]
[1646745455100,2.25313,2561.1,2560.8,1.05]
[1646745455297,2.25806662,2561.1,2560.8,1.05]
[1646745456098,2.25313,2561.1,2560.8,1.05]
[1646745456437,2.25806662,2561.1,2560.8,1.35]
[1646745456836,2.25806662,2561.1,2560.8,1.818]
[1646745457040,1.95806662,2561.1,2560.8,13.638]
[1646745457238,1.95806662,2561.1,2560.8,16.5908175]
[1646745457239,0.98143662,2561.1,2560.8,16.5908175]
[1646745457439,0.09980092,2561.3,2561.2,1.05]